bitfinex/quotes_ETHUSD_20250904
["timestamp","ask_amount","ask_price","bid_price","bid_amount"]
[1756973346456,0.2931,4391.3,4391.2,10.47948183]
[1756973346650,0.7575,4391.3,4391.2,10.47948183]
[1756973347091,0.0002,4391.3,4391.2,9.51828183]
[1756973347283,0.025,4392.8,4392.7,2.2765042]
[1756973347451,0.025,4392.8,4392.7,6.1175042]
[1756973347648,0.025,4392.8,4392.7,6.6919042]
[1756973348084,0.3179,4392.8,4392.7,6.6919042]
[1756973348289,0.3179,4392.8,4392.7,6.1175042]
[1756973348809,1.0,4396.9,4392.8,2.406]
[1756973348949,0.05,4397.8,4396.1,0.2283]
[1756973349153,0.05,4397.8,4392.9,2.313664]
[1756973349154,0.4644,4397.7,4396.3,3.0]
[1756973349364,0.4644,4397.6,4397.4,2.27406155]
[1756973349563,0.7573,4397.5,4397.4,2.27406155]
[1756973349869,0.7573,4397.5,4396.4,11.09767097]
[1756973349870,0.7573,4397.5,4396.4,0.4644]
[1756973350209,0.7573,4397.5,4396.5,2.27452003]
[1756973350393,0.4644,4397.4,4396.4,0.4644]
[1756973350696,0.2929,4396.5,4396.4,0.4644]
[1756973351977,0.05,4397.8,4396.4,13.31987384]
[1756973352177,0.05,4397.8,4397.0,8.88227097]
[1756973352357,0.05,4397.8,4397.6,2.27396142]
[1756973352886,0.2929,4397.7,4397.6,2.27396142]
[1756973353085,0.2929,4397.7,4396.5,2.2745271]
[1756973353086,3.0,4397.6,4396.5,2.2745271]
[1756973353268,0.2929,4396.6,4396.0,0.4608]
[1756973353463,0.2929,4396.6,4396.0,2.73556275]
[1756973353788,0.2929,4396.6,4396.0,2.7355613]
[1756973353995,0.2929,4396.6,4396.3,2.95839833]
[1756973354159,0.2929,4396.6,4396.3,0.68376926]
[1756973354574,0.2929,4396.6,4396.3,2.95839394]
[1756973354777,0.2929,4396.6,4396.2,4.145]
[1756973354981,2.27402456,4397.5,4396.2,4.145]
[1756973354982,0.05,4397.8,4397.1,2.27420891]
[1756973355192,0.2929,4397.2,4396.8,4.141]
[1756973355661,0.2929,4397.2,4396.9,2.27432907]
[1756973355862,0.2929,4397.2,4396.8,4.141]
[1756973356164,0.2929,4397.2,4397.1,2.27422619]
[1756973356378,0.2929,4397.2,4396.8,4.141]
[1756973356779,0.7573,4397.2,4396.8,2.27434633]
[1756973356980,0.2929,4397.2,4396.8,4.138]
[1756973357183,0.2929,4397.2,4397.0,2.27424481]
[1756973357366,0.2929,4397.2,4397.0,2.27426149]
[1756973357880,0.2929,4397.2,4396.8,4.5988]
[1756973358062,0.2929,4397.2,4397.0,2.27424611]
[1756973358389,0.2929,4397.2,4396.8,4.5988]
[1756973358591,0.1136,4397.4,4397.2,2.27417447]
[1756973358793,0.05,4397.8,4397.7,2.27391591]
[1756973359102,0.05,4397.8,4397.7,7.61321591]
[1756973359390,0.05,4397.8,4397.7,7.15511591]
[1756973359589,0.3429,4397.8,4397.7,2.73831591]
[1756973359890,0.05,4397.8,4397.7,2.27391591]
[1756973360091,0.05,4397.8,4397.7,2.73831591]
[1756973361592,0.05,4397.8,4397.7,6.88931591]
[1756973361790,0.3421,4397.8,4397.7,4.6154]
[1756973361992,0.3421,4397.8,4397.7,6.88931591]
[1756973362290,0.0492,4397.8,4397.7,2.27391591]
[1756973362863,0.3431,4397.8,4397.7,2.27391591]
[1756973363205,0.0502,4397.8,4397.7,2.27391591]
[1756973363569,0.3431,4397.8,4397.7,2.27391591]
[1756973364100,0.3431,4397.8,4397.6,0.68354491]
[1756973364270,0.8075,4397.8,4397.6,0.68354491]
[1756973364469,0.8075,4397.8,4397.5,4.148]
[1756973364669,0.8075,4397.8,4397.6,2.27394988]
[1756973365509,0.8075,4397.8,4397.5,4.148]
[1756973365677,0.3431,4397.8,4397.5,4.148]
[1756973366006,0.4644,4397.7,4397.5,4.148]
[1756973366301,0.2929,4397.6,4397.5,4.148]
[1756973366867,0.7573,4397.6,4397.5,4.148]
[1756973367073,0.7573,4397.6,4397.3,4.14]
[1756973367320,0.7573,4397.6,4397.3,4.133]
[1756973367321,0.2929,4397.6,4397.3,4.133]
[1756973367472,0.2929,4397.6,4397.1,4.133]
[1756973367473,0.4644,4397.5,4397.1,4.133]
[1756973367674,0.2929,4397.2,4397.1,4.133]
[1756973368679,0.2929,4397.2,4396.8,0.004]
[1756973368879,0.4644,4397.1,4396.8,0.004]
[1756973369321,0.2929,4396.9,4396.8,0.004]
[1756973369702,0.7573,4396.9,4396.8,0.004]
[1756973370693,3.7573,4396.9,4396.8,0.004]
[1756973371203,2.27401932,4397.5,4396.8,0.004]
[1756973371403,0.287,4396.9,4396.8,0.004]
[1756973374822,0.1136,4397.0,4396.8,0.004]
[1756973375492,0.1136,4397.0,4396.8,0.4784]
[1756973375923,0.287,4396.9,4396.8,0.004]
[1756973377710,0.1136,4397.0,4396.8,0.004]
[1756973377923,0.287,4396.9,4396.8,0.004]
[1756973378122,0.7283,4396.9,4396.8,0.004]
[1756973380324,3.00262964,4396.9,4396.8,0.004]
[1756973380528,0.7283,4396.9,4396.8,0.004]
[1756973380833,3.00262964,4396.9,4396.8,0.004]
[1756973381227,0.1136,4397.0,4396.8,0.004]
[1756973381426,0.287,4396.9,4396.8,0.004]
[1756973381723,0.7283,4396.9,4396.8,0.004]
[1756973383325,0.287,4396.9,4396.8,0.004]
[1756973384550,3.00262964,4396.9,4396.8,0.004]
[1756973385652,6.00262964,4396.9,4396.8,0.004]
[1756973385815,7.75162964,4396.9,4396.8,0.004]
[1756973386539,8.54362964,4396.9,4396.8,0.004]
[1756973387330,8.54282964,4396.9,4396.8,0.004]
[1756973387850,2.20039526,4396.0,4395.9,0.004]
[1756973388020,20.22397172,4396.0,4395.9,0.004]
[1756973388222,20.95227172,4396.0,4395.9,0.004]
[1756973388418,10.13129526,4396.0,4395.9,0.004]
[1756973388634,20.95227172,4396.0,4395.9,0.004]
[1756973393042,21.74427172,4396.0,4395.9,0.004]
[1756973393860,21.28997172,4396.0,4395.9,0.004]
[1756973394063,21.73127172,4396.0,4395.9,0.004]
[1756973400368,6.06684701,4395.9,4395.8,0.025]
[1756973400867,6.85184701,4395.9,4395.8,0.025]
[1756973402274,10.90884701,4395.9,4395.8,0.025]
[1756973402769,6.96544701,4395.9,4395.8,0.025]
[1756973402975,0.1136,4395.9,4395.8,0.8045]
[1756973403139,4.058,4396.2,4395.8,0.8045]
[1756973403343,0.1136,4395.9,4395.8,0.3245]
[1756973403975,0.1136,4395.9,4395.8,1.2469]
[1756973407346,0.1136,4395.9,4395.8,0.025]
[1756973407347,9.75384701,4395.9,4395.8,0.025]
[1756973407845,10.22644701,4395.9,4395.8,0.025]
[1756973408243,11.01844701,4395.9,4395.8,0.025]
[1756973410674,10.53784701,4395.9,4395.8,0.025]
[1756973411367,10.53484701,4395.9,4395.8,0.025]
[1756973411678,11.00744701,4395.9,4395.8,0.025]
[1756973412980,11.00664701,4395.9,4395.8,0.025]
[1756973413488,10.89384701,4395.9,4395.8,0.025]
[1756973414307,11.00744701,4395.9,4395.8,0.029]
[1756973414652,11.00844701,4395.9,4395.8,0.029]
[1756973416184,11.35789092,4395.9,4395.8,0.029]
[1756973417282,0.792,4395.0,4391.9,0.2283]
[1756973417464,2.09844391,4394.9,4393.8,0.505]
[1756973417788,6.06788247,4393.9,4393.8,0.505]
[1756973418089,10.10588247,4393.9,4393.8,0.025]
[1756973418454,10.10588247,4393.9,4393.8,0.3245]
[1756973422175,3.0,4393.9,4393.8,1.2469]
[1756973423082,7.03,4393.9,4393.8,1.2469]
[1756973423593,7.1436,4393.9,4393.8,1.2469]
[1756973423983,9.41948247,4393.9,4393.8,1.2469]
[1756973424499,7.1436,4393.9,4393.8,1.2469]
[1756973425192,3.1136,4393.9,4393.8,1.2469]
[1756973429900,4.015,4394.8,4394.0,2.27582111]
[1756973430070,1.75,4395.5,4394.7,0.2903]
[1756973430276,4.016,4395.4,4394.8,0.9159]
[1756973430475,4.016,4395.4,4395.3,0.2903]
[1756973430698,9.40470579,4395.4,4395.3,1.2062]
[1756973430894,6.40470579,4395.4,4395.3,1.2062]
[1756973431209,9.40470579,4395.4,4395.3,1.2062]
[1756973431385,0.1136,4395.4,4395.3,1.2062]
[1756973433676,0.025,4395.8,4395.3,1.2062]
[1756973433876,0.1136,4395.6,4395.4,0.9159]
[1756973434084,0.1136,4395.6,4395.5,1.2062]
[1756973435282,0.025,4395.8,4395.5,1.2062]
[1756973435491,0.025,4395.8,4395.6,3.19089908]
[1756973435783,0.025,4395.8,4395.7,2.27495051]
[1756973435997,0.025,4395.8,4395.7,1.2062]
[1756973438307,0.0242,4395.8,4395.7,1.2062]
[1756973438475,0.0242,4395.8,4395.2,2.2044]
[1756973438681,0.1136,4395.6,4395.4,0.4615]
[1756973438882,0.1136,4395.6,4395.5,1.2062]
[1756973440817,0.1136,4395.6,4395.5,0.7518]
[1756973440982,0.4072,4395.6,4395.2,1.75]
[1756973441312,0.1136,4395.3,4395.2,1.75]
[1756973441513,0.1136,4395.3,4395.2,2.5018]
[1756973442509,0.1136,4395.3,4394.8,0.9199]
[1756973442710,0.4072,4395.3,4394.9,0.4615]
[1756973442913,0.1136,4395.3,4395.0,0.4615]
[1756973443214,0.1136,4395.3,4395.1,0.4615]
[1756973443582,0.1136,4395.2,4395.1,0.4615]
[1756973443779,0.1136,4395.2,4394.8,0.004]
[1756973443780,0.4072,4395.2,4394.8,0.004]
[1756973443979,2.27532332,4395.0,4394.8,0.004]
[1756973444178,2.38896462,4394.9,4394.8,0.004]
[1756973444384,2.68256462,4394.9,4394.8,0.004]
[1756973444582,5.68256462,4394.9,4394.8,0.004]
[1756973445009,3.4072,4394.9,4394.8,0.004]
[1756973445618,5.38896462,4394.9,4394.8,0.004]
[1756973446580,5.68256462,4394.9,4394.8,0.004]
[1756973447485,3.1136,4394.9,4394.8,0.2943]
[1756973447685,3.1136,4394.9,4394.8,0.7558]
[1756973448417,5.68256462,4394.9,4394.8,0.004]
[1756973448716,3.1136,4394.9,4394.8,0.7558]
[1756973451617,3.1136,4394.9,4394.8,1.2102]
[1756973452117,5.38896462,4394.9,4394.8,0.7558]
[1756973452318,5.68256462,4394.9,4394.8,0.004]
[1756973452921,5.38896462,4394.9,4394.8,0.004]
[1756973455497,3.4072,4394.9,4394.8,0.004]
[1756973455697,5.38896462,4394.9,4394.8,0.004]
[1756973456518,5.68256462,4394.9,4394.8,0.004]
[1756973457029,3.1136,4394.9,4394.8,0.004]
[1756973457228,3.1136,4394.9,4394.8,0.7558]
[1756973458507,3.1136,4394.9,4394.8,0.004]
[1756973458508,5.68256462,4394.9,4394.8,0.004]
[1756973458822,3.4072,4394.9,4394.8,0.004]
[1756973459016,3.1136,4394.9,4394.8,0.4655]
[1756973459212,3.1136,4394.9,4394.8,0.004]
[1756973459532,3.1136,4394.9,4394.8,0.7558]
[1756973459702,3.1136,4394.9,4394.8,0.4655]
[1756973460419,5.67406462,4394.9,4394.8,0.004]
[1756973460936,6.13206462,4394.9,4394.8,0.004]
[1756973461101,10.10606462,4394.9,4394.8,0.004]
[1756973462050,19.60912169,4394.9,4394.8,0.004]
[1756973462208,20.40112169,4394.9,4394.8,0.004]
[1756973463535,20.40032169,4394.9,4394.8,0.004]
[1756973463738,20.51382169,4394.9,4394.8,0.004]
[1756973465242,6.92326462,4394.9,4394.8,0.004]
[1756973465439,6.92326462,4394.9,4394.8,0.7549]
[1756973465440,3.1128,4394.9,4394.8,0.7549]
[1756973465608,3.1136,4394.9,4394.8,1.229]
[1756973466010,5.38896462,4394.9,4394.8,0.7549]
[1756973466546,5.67406462,4394.9,4394.8,0.004]
[1756973467415,19.14812169,4394.9,4394.8,0.004]
[1756973467927,19.14812169,4394.9,4394.8,1.229]
[1756973467928,7.0826,4394.9,4394.8,1.229]
[1756973468126,5.38896462,4394.9,4394.8,1.229]
[1756973468721,5.38896462,4394.9,4394.8,0.4634]
[1756973468926,5.38896462,4394.9,4394.8,0.7549]
[1756973471245,5.67406462,4394.9,4394.8,0.004]
[1756973471548,5.38896462,4394.9,4394.8,0.004]
[1756973471755,15.17712169,4394.9,4394.8,0.004]
[1756973472951,19.14212169,4394.9,4394.8,0.004]
[1756973473136,19.60012169,4394.9,4394.8,0.004]
[1756973473330,19.93412169,4394.9,4394.8,0.004]
[1756973474757,10.43106462,4394.9,4394.8,0.004]
[1756973475053,19.93412169,4394.9,4394.8,0.004]
[1756973475253,20.39212169,4394.9,4394.8,0.004]
[1756973475431,19.93412169,4394.9,4394.8,0.004]
[1756973476536,20.39212169,4394.9,4394.8,0.004]
[1756973478238,10.88906462,4394.9,4394.8,0.004]
[1756973478625,11.00256462,4394.9,4394.8,0.004]
[1756973479853,10.88906462,4394.9,4394.8,0.004]
[1756973484466,10.88906462,4394.9,4394.3,0.004]
[1756973484667,15.57068059,4394.4,4394.3,0.004]
[1756973484850,10.01762352,4394.4,4394.3,0.004]
[1756973485038,6.06762352,4394.4,4394.3,0.7549]
[1756973485365,10.01762352,4394.4,4394.3,1.229]
[1756973485566,10.01762352,4394.4,4394.3,0.7549]
[1756973486346,10.30272352,4394.4,4394.3,0.004]
[1756973486666,10.76072352,4394.4,4394.3,0.004]
[1756973488137,11.11016743,4394.4,4394.3,0.004]
[1756973488964,11.10936743,4394.4,4394.3,0.004]
[1756973490770,10.75992352,4394.4,4394.3,0.004]
[1756973492375,6.35192352,4394.4,4394.3,0.004]
[1756973492575,5.27562352,4394.4,4394.3,1.1774]
[1756973492757,18.72068059,4394.4,4394.3,1.1774]
[1756973493662,18.71968059,4394.4,4394.3,1.1774]
[1756973494680,9.33022352,4394.4,4394.3,1.1774]
[1756973495646,9.32922352,4394.4,4394.3,1.1774]
[1756973495975,18.83228059,4394.4,4394.3,1.1774]
[1756973497779,20.2693245,4394.4,4394.3,0.004]
[1756973498283,20.6989245,4394.4,4394.3,0.004]
[1756973499409,3.06783067,4394.0,4393.9,0.004]
[1756973499582,21.60533165,4394.0,4393.9,0.004]
[1756973499893,22.44413165,4394.0,4393.9,0.004]
[1756973500405,22.54638774,4394.0,4393.9,0.004]
[1756973501606,23.88701035,4394.0,4393.9,0.004]
[1756973503486,11.86143067,4394.0,4393.9,1.1774]
[1756973503683,11.06943067,4394.0,4393.9,1.1774]
[1756973504597,11.25143067,4394.0,4393.9,0.004]
[1756973504762,22.88711035,4394.0,4393.9,0.004]
[1756973505081,23.33881035,4394.0,4393.9,0.004]
[1756973505398,23.76841035,4394.0,4393.9,0.004]
[1756973506089,23.33881035,4394.0,4393.9,0.004]
[1756973506960,23.76841035,4394.0,4393.9,0.004]
[1756973507282,8.26953067,4394.0,4393.9,0.004]
[1756973507486,22.60551035,4394.0,4393.9,0.004]
[1756973507685,22.90111035,4394.0,4393.9,0.004]
[1756973508289,23.33071035,4394.0,4393.9,0.004]
[1756973508489,23.6584876,4394.0,4393.9,0.004]
[1756973510392,23.33071035,4394.0,4393.9,0.004]
[1756973513099,22.90111035,4394.0,4393.9,0.004]
[1756973513393,23.33071035,4394.0,4393.9,0.004]
[1756973513589,6.06788247,4393.9,4393.8,0.029]
[1756973513967,6.79308247,4393.9,4393.8,0.029]
[1756973514568,6.90588247,4393.9,4393.8,0.029]
[1756973514974,6.47628247,4393.9,4393.8,0.029]
[1756973515191,10.40928247,4393.9,4393.8,0.029]
[1756973515974,10.83888247,4393.9,4393.8,0.029]
[1756973516500,10.40928247,4393.9,4393.8,1e-08]
[1756973516667,10.83888247,4393.9,4393.8,1e-08]
[1756973516868,6.90588247,4393.9,4393.8,1e-08]
[1756973517063,10.40628247,4393.9,4393.8,1e-08]
[1756973517579,6.47628247,4393.9,4393.8,1e-08]
[1756973517779,10.40628247,4393.9,4393.8,1e-08]
[1756973519287,10.83588247,4393.9,4393.8,1e-08]
[1756973521698,3.06808967,4393.5,4393.4,0.004]
[1756973521881,20.94936935,4393.5,4393.4,0.004]
[1756973522402,21.40506935,4393.5,4393.4,0.004]
[1756973524884,21.71136935,4393.5,4393.4,0.004]
[1756973525403,21.40506935,4393.5,4393.4,0.004]
[1756973526213,10.55838967,4393.5,4393.4,1.2409]
[1756973526576,10.55538967,4393.5,4393.4,0.8024]
[1756973526776,10.55538967,4393.5,4393.4,1.2409]
[1756973527277,10.55538967,4393.5,4393.4,0.8024]
[1756973527470,7.09968967,4393.5,4393.4,1.2409]
[1756973527706,10.09968967,4393.5,4393.4,1.2409]
[1756973528798,10.09768967,4393.5,4393.4,1.2409]
[1756973529170,10.09768967,4393.5,4393.4,0.8024]
[1756973531699,10.09768967,4393.5,4393.4,0.489]
[1756973534423,6.18168967,4393.5,4393.4,0.489]
[1756973534782,6.18168967,4393.5,4393.4,0.8024]
[1756973534984,10.08968967,4393.5,4393.4,0.8024]
[1756973537317,10.08968967,4393.5,4393.4,0.489]
[1756973537683,10.08768967,4393.5,4393.4,0.489]
[1756973538386,10.39398967,4393.5,4393.4,0.489]
[1756973538616,10.39398967,4393.5,4393.4,0.004]
[1756973538916,11.17056692,4393.5,4393.4,0.004]
[1756973539139,11.85517409,4393.5,4393.4,0.004]
[1756973539483,11.52739684,4393.5,4393.4,0.004]
[1756973539887,11.52659684,4393.5,4393.4,0.004]
[1756973541516,6.86549684,4393.5,4393.4,0.8024]
[1756973541693,5.38888967,4393.5,4393.4,1.2409]
[1756973541895,1.75,4394.0,4393.4,1.36499]
[1756973542102,2.27598704,4393.7,4393.5,0.9235]
[1756973542417,2.27593553,4393.8,4393.6,1.2369]
[1756973542592,3.0,4393.9,4393.7,0.9235]
[1756973542593,5.27589003,4393.9,4393.7,0.9235]
[1756973542793,2.27588247,4393.9,4393.8,1.2369]
[1756973543192,5.38948247,4393.9,4393.8,1.2369]
[1756973543702,2.38948247,4393.9,4393.8,1.2369]
[1756973544024,0.1136,4393.9,4393.8,1.36059]
[1756973545092,2.38948247,4393.9,4393.8,1.36059]
[1756973545524,0.1136,4393.9,4393.8,1.36059]
[1756973550601,2.38948247,4393.9,4393.8,1.36059]
[1756973550824,5.38948247,4393.9,4393.8,0.7984]
[1756973551031,5.38948247,4393.9,4393.8,0.3134]
[1756973551232,2.27603787,4393.6,4393.5,0.4904]
[1756973551449,2.38963787,4393.6,4393.5,0.4904]
[1756973551744,5.27608967,4393.5,4393.4,0.004]
[1756973551972,9.18108967,4393.5,4393.4,0.004]
[1756973552098,9.18108967,4393.5,4393.4,0.3009]
[1756973552832,9.18108967,4393.5,4393.4,0.004]
[1756973553331,10.28168967,4393.5,4393.4,0.004]
[1756973553706,11.17358967,4393.5,4393.4,0.004]
[1756973554609,10.71258967,4393.5,4393.4,0.004]
[1756973556235,10.28168967,4393.5,4393.4,0.004]
[1756973557343,10.71258967,4393.5,4393.4,0.004]
[1756973559322,10.28168967,4393.5,4393.4,0.004]
[1756973562532,10.28268967,4393.5,4393.4,0.004]
[1756973562734,11.17458967,4393.5,4393.4,0.004]
[1756973563250,11.26586521,4393.5,4393.4,0.004]
[1756973563460,20.14563319,4393.5,4393.4,0.004]
[1756973563822,19.68463319,4393.5,4393.4,0.004]
[1756973564140,20.14563319,4393.5,4393.4,0.004]
[1756973564532,29.02540117,4393.5,4393.4,0.004]
[1756973564925,20.14563319,4393.5,4393.4,0.004]
[1756973565335,20.14483319,4393.5,4393.4,0.004]
[1756973565957,19.68383319,4393.5,4393.4,0.004]
[1756973566847,20.14483319,4393.5,4393.4,0.004]
[1756973567041,29.02460117,4393.5,4393.4,0.004]
[1756973567348,29.63605367,4393.5,4393.4,0.004]
[1756973567523,6.39591873,4393.4,4393.3,0.004]
[1756973567719,6.85691873,4393.4,4393.3,0.004]
[1756973567923,7.59641873,4393.4,4393.3,0.004]
[1756973569252,6.70451873,4393.4,4393.3,0.004]
[1756973569433,5.27614148,4393.4,4393.3,0.3009]
[1756973569747,18.85190946,4393.4,4393.3,0.7913]
[1756973570156,15.85190946,4393.4,4393.3,0.7913]
[1756973570360,19.16050946,4393.4,4393.3,0.004]
[1756973570526,19.16050946,4393.4,4392.5,1e-08]
[1756973570527,3.06855602,4392.6,4392.5,1e-08]
[1756973570725,0.792,4392.4,4391.5,0.4904]
[1756973570929,14.46528685,4391.9,4391.5,0.4904]
[1756973571132,18.86432236,4391.9,4391.5,0.4904]
[1756973571430,18.86432236,4391.9,4391.1,0.4904]
[1756973571431,28.53609034,4391.9,4391.1,0.4904]
[1756973571652,2.27743742,4390.9,4390.8,0.029]
[1756973571834,3.0,4391.2,4390.8,0.029]
[1756973572156,3.0,4391.0,4390.8,0.7899]
[1756973572457,3.0,4390.9,4390.8,0.3259]
[1756973572955,5.27743742,4390.9,4390.8,1.2803]
[1756973573659,2.27743742,4390.9,4390.8,1.2803]
[1756973573840,5.27743742,4390.9,4390.8,1.2803]
[1756973574040,3.0,4390.9,4390.8,1.2803]
[1756973574441,5.27743742,4390.9,4390.8,1.2803]
[1756973574763,3.0,4390.9,4390.8,1.2803]
[1756973575056,6.904,4390.9,4390.8,1.2803]
[1756973575262,9.18143742,4390.9,4390.8,1.2803]
[1756973575961,6.904,4390.9,4390.8,1.2803]
[1756973576158,9.18143742,4390.9,4390.8,1.2803]
[1756973576975,2.27743742,4390.9,4390.8,1.2803]
[1756973578173,0.68483222,4391.3,4390.8,1.2803]
[1756973578385,0.68483222,4391.3,4390.8,0.3259]
[1756973578386,5.27738519,4391.1,4390.8,0.3259]
[1756973578550,2.27738556,4391.0,4390.9,0.9544]
[1756973578882,2.27738556,4391.0,4390.8,0.029]
[1756973579090,2.27738556,4391.0,4390.9,0.2969]
[1756973579380,5.2773471,4391.1,4390.9,1.2513]
[1756973579572,2.27738556,4391.0,4390.9,0.2969]
[1756973580257,2.27738556,4391.0,4390.9,1.2512]
[1756973580765,5.27733864,4391.1,4390.9,1.2512]
[1756973580966,5.27733864,4391.1,4391.0,0.9543]
[1756973581180,5.27733864,4391.1,4391.0,1.2571]
[1756973581357,5.39093864,4391.1,4391.0,1.2571]
[1756973582981,5.39093864,4391.1,4391.0,0.3028]
[1756973583164,2.27743742,4390.9,4390.8,0.029]
[1756973583353,9.18143742,4390.9,4390.8,0.029]
[1756973583678,9.18143742,4390.9,4390.8,0.7974]
[1756973584271,9.18143742,4390.9,4390.8,1.2861]
[1756973584786,6.904,4390.9,4390.8,1.2861]
[1756973584992,2.2773163,4391.2,4390.8,1.41511]
[1756973584993,0.1136,4391.2,4390.8,1.41511]
[1756973585158,0.1136,4391.5,4390.9,0.9543]
[1756973585358,0.1136,4391.5,4391.1,2.27732569]
[1756973585680,0.1136,4391.5,4391.4,0.3028]
[1756973586083,0.1136,4391.5,4391.4,1.2571]
[1756973588981,5.39072626,4391.5,4391.4,0.3028]
[1756973589152,5.39072626,4391.5,4391.0,0.4887]
[1756973589153,2.27732906,4391.2,4391.0,0.4887]
[1756973589352,0.1136,4391.1,4391.0,0.4887]
[1756973589575,2.39093369,4391.1,4391.0,0.3028]
[1756973590857,2.39013369,4391.1,4391.0,0.3028]
[1756973591063,2.27743742,4390.9,4390.8,0.029]
[1756973591478,2.27743742,4390.9,4390.8,0.3318]
[1756973591787,2.27743742,4390.9,4390.8,0.029]
[1756973591788,2.57273742,4390.9,4390.8,0.029]
[1756973592753,5.57273742,4390.9,4390.8,0.029]
[1756973592981,6.00853742,4390.9,4390.8,0.029]
[1756973593379,5.57273742,4390.9,4390.8,0.029]
[1756973595596,6.00853742,4390.9,4390.8,0.029]
[1756973597366,7.75953742,4390.9,4390.8,0.029]
[1756973597700,8.21683742,4390.9,4390.8,0.029]
[1756973598103,9.00883742,4390.9,4390.8,0.029]
[1756973599502,17.8886054,4390.9,4390.8,0.029]
[1756973599671,3.792,4390.3,4390.2,0.004]
[1756973599865,10.08634867,4390.3,4390.2,0.004]
[1756973600178,11.27474867,4390.3,4390.2,0.004]
[1756973600372,11.36608945,4390.3,4390.2,0.004]
[1756973602674,12.04438805,4390.3,4390.2,0.004]
[1756973604873,11.70406112,4390.3,4390.2,0.004]
[1756973605069,6.56998945,4390.3,4390.2,0.004]
[1756973605405,19.35275743,4390.3,4390.2,0.004]
[1756973605603,20.24585743,4390.3,4390.2,0.004]
[1756973606707,16.34285743,4390.3,4390.2,0.004]
[1756973607008,16.34285743,4390.3,4389.5,0.004]
[1756973607009,6.0701119,4389.6,4389.5,0.004]
[1756973607219,16.81547988,4389.6,4389.5,0.004]
[1756973607374,21.01377988,4389.6,4389.5,0.004]
[1756973607572,12.22537187,4389.6,4389.5,0.004]
[1756973607803,12.66117187,4389.6,4389.5,0.004]
[1756973608104,13.11847187,4389.6,4389.5,0.004]
[1756973608923,13.45644354,4389.6,4389.5,0.004]
[1756973610024,9.21547187,4389.6,4389.5,0.004]
[1756973610215,12.22537187,4389.6,4389.5,0.004]
[1756973611291,8.02707187,4389.6,4389.5,0.2922]
[1756973611490,11.93007187,4389.6,4389.5,0.2922]
[1756973611717,12.21567187,4389.6,4389.5,0.004]
[1756973612430,11.93007187,4389.6,4389.5,0.004]
[1756973613422,11.93107187,4389.6,4389.5,0.004]
[1756973613726,11.93107187,4389.6,4389.5,0.2922]
[1756973614095,12.21667187,4389.6,4389.5,0.004]
[1756973614292,8.78277187,4389.6,4389.5,0.004]
[1756973614619,12.21567187,4389.6,4389.5,0.004]
[1756973616320,12.21487187,4389.6,4389.5,0.004]
[1756973616711,12.68497187,4389.6,4389.5,0.004]
[1756973617531,12.21487187,4389.6,4389.5,0.004]
[1756973618399,8.31187187,4389.6,4389.5,0.004]
[1756973618716,11.92927187,4389.6,4389.5,0.004]
[1756973619116,11.92927187,4389.6,4389.5,0.2922]
[1756973619317,11.92927187,4389.6,4389.5,0.004]
[1756973619623,12.21487187,4389.6,4389.5,0.004]
[1756973620321,0.1136,4389.6,4389.5,0.7874]
[1756973620522,0.025,4392.8,4389.6,4.63003136]
[1756973620722,0.1136,4391.6,4390.5,3.0]
[1756973620927,0.025,4392.8,4391.5,0.2882]
[1756973620928,0.1386,4391.8,4391.5,0.2882]
[1756973621127,2.698,4391.7,4391.5,0.2882]
[1756973622511,3.0,4391.6,4391.5,0.2882]
[1756973626527,5.27707441,4391.6,4391.5,0.2882]
[1756973626834,3.0,4391.6,4391.5,0.2882]
[1756973627538,5.27707441,4391.6,4391.5,0.2882]
[1756973627746,3.0,4391.6,4391.5,0.2882]
[1756973629128,3.905,4391.6,4391.5,0.5416]
[1756973629338,0.1386,4391.8,4391.5,0.6138]
[1756973629636,0.1386,4391.8,4391.7,2.27702256]
[1756973629938,3.931,4391.8,4391.7,2.89082256]
[1756973630120,4.0446,4391.8,4391.7,2.81862256]
[1756973631056,4.0446,4391.8,4391.7,0.2882]
[1756973634224,4.0446,4391.8,4391.7,0.5416]
[1756973634417,4.0446,4391.8,4391.7,0.2882]
[1756973634632,0.1386,4391.8,4391.7,0.2882]
[1756973634856,4.0396,4391.8,4391.7,0.2882]
[1756973635018,0.1386,4391.8,4391.7,0.2882]
[1756973635322,4.0396,4391.8,4391.7,0.2882]
[1756973636757,0.1386,4391.8,4391.7,0.2882]
[1756973637052,4.0396,4391.8,4391.7,0.2882]
[1756973637222,0.1386,4391.8,4391.7,0.2882]
[1756973637418,4.0396,4391.8,4391.7,0.2882]
[1756973640553,4.0396,4391.8,4391.3,2.27722756]
[1756973641155,4.0396,4391.8,4391.4,2.27717411]
[1756973641343,0.1386,4391.8,4391.4,2.27717411]
[1756973641541,3.901,4391.7,4391.5,2.27711974]
[1756973641726,3.9002,4391.7,4391.6,0.3015]
[1756973644426,3.9002,4391.7,4391.4,2.27717509]
[1756973644755,0.901,4391.6,4391.3,2.27721915]
[1756973644956,3.9,4391.5,4391.3,2.27721915]
[1756973645160,0.1386,4391.8,4391.4,2.57867812]
[1756973645460,3.9,4391.7,4391.4,2.57867812]
[1756973645836,3.9,4391.7,4391.5,2.27711159]
[1756973646041,3.9,4391.7,4391.6,0.3015]
[1756973646242,3.9,4391.7,4391.6,2.57857441]
[1756973646466,3.9,4391.7,4391.6,0.3015]